fUST/lending_fUST_20251201
["ID","MTS","AMOUNT","RATE_DAILY","PERIOD"]
[395203771,1764541840366,-500.0,0.00013698,2]
[395203773,1764541840375,-501.17430842,0.00013698,2]
[395203775,1764541840384,-500.0,0.00013698,2]
[395203777,1764541840393,-500.0,0.00013698,2]
[395203779,1764541840403,-1002.92,0.00013698,2]
[395203781,1764541840412,-500.0,0.00013698,2]
[395203783,1764541840421,-500.0,0.00013698,2]
[395203785,1764541840430,-583.71,0.00013698,2]
[395203787,1764541840441,-500.0,0.00013698,2]
[395203789,1764541840450,-500.0,0.00013698,2]
[395203791,1764541840459,-500.0,0.00013698,2]
[395203793,1764541840468,-566.87,0.00013698,2]
[395203795,1764541840477,-500.0,0.00013698,2]
[395203797,1764541840486,-500.0,0.00013698,2]
[395203800,1764541840495,-500.0,0.00013698,2]
[395203801,1764541840504,-444.04984892,0.00013698,2]
[395203803,1764541840513,-500.0,0.00013698,2]
[395203805,1764541840522,-500.0,0.00013698,2]
[395203808,1764541840531,-500.0,0.00013698,2]
[395203810,1764541840540,-247.31258061,0.00013698,2]
[395203812,1764541840550,-500.0,0.00013698,2]
[395203813,1764541840559,-789.43,0.00013698,2]
[395203815,1764541840567,-500.0,0.00013698,2]
[395203817,1764541840576,-666.3,0.00013698,2]
[395203819,1764541840585,-635.48,0.00013698,2]
[395203821,1764541840594,-500.0,0.00013698,2]
[395203823,1764541840602,-845.44,0.00013698,2]
[395203825,1764541840611,-500.0,0.00013698,2]
[395203827,1764541840620,-500.0,0.00013698,2]
[395203829,1764541840629,-500.0,0.00013698,2]
[395203831,1764541840638,-500.0,0.00013698,2]
[395203833,1764541840647,-524.92,0.00013698,2]
[395203835,1764541840657,-503.11395866,0.00013698,2]
[395203837,1764541840665,-500.0,0.00013698,2]
[395203839,1764541840674,-500.0,0.00013698,2]
[395203841,1764541840683,-500.0,0.00013698,2]
[395203843,1764541840692,-500.0,0.00013698,2]
[395203845,1764541840701,-500.0,0.00013698,2]
[395203847,1764541840710,-500.0,0.00013698,2]
[395203850,1764541840720,-500.0,0.00013698,2]
[395203852,1764541840729,-500.0,0.00013698,2]
[395203854,1764541840738,-500.0,0.00013698,2]
[395203856,1764541840747,-500.0,0.00013698,2]
[395203858,1764541840755,-500.0,0.00013698,2]
[395203860,1764541840764,-355.62990621,0.00013698,2]
[395203862,1764541840773,-554.87,0.00013698,2]
[395203864,1764541840782,-500.0,0.00013698,2]
[395203866,1764541840791,-500.0,0.00013698,2]
[395203868,1764541840800,-500.0,0.00013698,2]
[395203870,1764541840809,-500.0,0.00013698,2]
[395203872,1764541840818,-1285.3,0.00013698,2]
[395203874,1764541840827,-500.0,0.00013698,2]
[395203876,1764541840836,-2822.51,0.00013698,2]
[395203878,1764541840845,-500.0,0.00013698,2]
[395203880,1764541840855,-238.11709688,0.00013698,2]
[395203882,1764541840864,-500.0,0.00013698,2]
[395203884,1764541840873,-500.0,0.00013698,2]
[395203886,1764541840882,-500.0,0.00013698,2]
[395203888,1764541840892,-500.0,0.00013698,2]
[395203890,1764541840901,-500.0,0.00013698,2]
[395203892,1764541840911,-1257.68,0.00013698,2]
[395203894,1764541840919,-1772.41,0.00013698,2]
[395203896,1764541840929,-500.0,0.00013698,2]
[395203898,1764541840937,-500.0,0.00013698,2]
[395203900,1764541840946,-500.0,0.00013698,2]
[395203902,1764541840956,-500.0,0.00013698,2]
[395203904,1764541840964,-402.01268431,0.00013698,2]
[395203906,1764541840973,-500.0,0.00013698,2]
[395203908,1764541840982,-475.40764716,0.00013698,2]
[395203910,1764541840991,-500.0,0.00013698,2]
[395203912,1764541840999,-500.0,0.00013698,2]
[395203914,1764541841009,-500.0,0.00013698,2]
[395203916,1764541841018,-500.0,0.00013698,2]
[395203918,1764541841026,-990.64,0.00013698,2]
[395203920,1764541841035,-836.58,0.00013698,2]
[395203922,1764541841044,-500.0,0.00013698,2]
[395203924,1764541841053,-500.0,0.00013698,2]
[395203926,1764541841062,-500.0,0.00013698,2]
[395203928,1764541841071,-500.0,0.00013698,2]
[395203930,1764541841080,-500.0,0.00013698,2]
[395203932,1764541841088,-500.0,0.00013698,2]
[395203934,1764541841098,-773.65,0.00013698,2]
[395203936,1764541841111,-756.27,0.00013698,2]
[395203938,1764541841120,-500.0,0.00013698,2]
[395203940,1764541841129,-500.0,0.00013698,2]
[395203942,1764541841138,-692.8,0.00013698,2]
[395203944,1764541841149,-500.0,0.00013698,2]
[395203946,1764541841159,-500.0,0.00013698,2]
[395203948,1764541841168,-500.0,0.00013698,2]
[395203950,1764541841179,-500.0,0.00013698,2]
[395203952,1764541841188,-500.0,0.00013698,2]
[395203954,1764541841198,-500.0,0.00013698,2]
[395203956,1764541841208,-500.0,0.00013698,2]
[395203958,1764541841217,-500.0,0.00013698,2]
[395203960,1764541841226,-500.0,0.00013698,2]
[395203962,1764541841236,-500.0,0.00013698,2]
[395203964,1764541841245,-500.0,0.00013698,2]
[395203966,1764541841254,-500.0,0.00013698,2]
[395203968,1764541841264,-1670.9,0.00013698,2]
[395203970,1764541841273,-500.0,0.00013698,2]
[395203972,1764541841282,-500.0,0.00013698,2]
[395203974,1764541841291,-500.0,0.00013698,2]
[395203976,1764541841300,-697.01,0.00013698,2]
[395203978,1764541841308,-500.0,0.00013698,2]
[395203980,1764541841318,-500.0,0.00013698,2]
[395203982,1764541841326,-500.0,0.00013698,2]
[395203984,1764541841336,-1274.54,0.00013698,2]
[395203986,1764541841345,-589.96913042,0.00013698,2]
[395203988,1764541841353,-500.0,0.00013698,2]
[395203990,1764541841363,-500.0,0.00013698,2]
[395203992,1764541841372,-500.0,0.00013698,2]
[395203994,1764541841381,-500.0,0.00013698,2]
[395203996,1764541841390,-500.0,0.00013698,2]
[395203998,1764541841400,-500.0,0.00013698,2]
[395204000,1764541841408,-500.0,0.00013698,2]
[395204002,1764541841418,-500.0,0.00013698,2]
[395204004,1764541841427,-1792.6,0.00013698,2]
[395204006,1764541841436,-500.0,0.00013698,2]
[395204008,1764541841445,-500.0,0.00013698,2]
[395204010,1764541841453,-500.0,0.00013698,2]
[395204012,1764541841462,-500.0,0.00013698,2]
[395204014,1764541841471,-1639.87,0.00013698,2]
[395204016,1764541841480,-500.0,0.00013698,2]
[395204018,1764541841489,-500.0,0.00013698,2]
[395204020,1764541841498,-500.0,0.00013698,2]
[395204022,1764541841506,-500.0,0.00013698,2]
[395204024,1764541841515,-525.38,0.00013698,2]
[395204026,1764541841524,-500.0,0.00013698,2]
[395204028,1764541841532,-500.0,0.00013698,2]
[395204030,1764541841542,-500.0,0.00013698,2]
[395204032,1764541841550,-875.09,0.00013698,2]
[395204034,1764541841559,-500.0,0.00013698,2]
[395204036,1764541841568,-500.0,0.00013698,2]
[395204038,1764541841576,-575.53,0.00013698,2]
[395204040,1764541841585,-500.0,0.00013698,2]
[395204042,1764541841594,-3116.78,0.00013698,2]
[395204044,1764541841603,-940.03,0.00013698,2]
[395204046,1764541841612,-500.0,0.00013698,2]
[395204048,1764541841621,-500.0,0.00013698,2]
[395204050,1764541841630,-500.0,0.00013698,2]
[395204052,1764541841639,-500.0,0.00013698,2]
[395204054,1764541841648,-500.0,0.00013698,2]
[395204056,1764541841657,-500.0,0.00013698,2]
[395204058,1764541841665,-500.0,0.00013698,2]
[395204060,1764541841674,-998.43,0.00013698,2]
[395204062,1764541841683,-500.0,0.00013698,2]
[395204064,1764541841692,-500.0,0.00013698,2]
[395204066,1764541841701,-6327.0,0.00013698,2]
[395204068,1764541841710,-500.0,0.00013698,2]
[395204070,1764541841719,-500.0,0.00013698,2]
[395204072,1764541841728,-500.0,0.00013698,2]
[395204074,1764541841737,-605.87,0.00013698,2]
[395204076,1764541841745,-1000.0,0.00013698,2]
[395204078,1764541841754,-14018.29,0.00013698,2]
[395204080,1764541841762,-500.0,0.00013698,2]
[395204081,1764541841771,-500.0,0.00013698,2]
[395204083,1764541841780,-500.0,0.00013698,2]
[395204085,1764541841790,-425.27159711,0.00013698,2]
[395204088,1764541841799,-521.69,0.00013698,2]
[395204089,1764541841808,-570.2836216,0.00013698,2]
[395204091,1764541841817,-501.55173561,0.00013698,2]
[395204094,1764541841827,-500.0,0.00013698,2]
[395204095,1764541841836,-500.0,0.00013698,2]
[395204097,1764541841845,-500.0,0.00013698,2]
[395204100,1764541841854,-666.31,0.00013698,2]
[395204102,1764541841864,-864.01,0.00013698,2]
[395204103,1764541841873,-500.0,0.00013698,2]
[395204105,1764541841882,-1356.79,0.00013698,2]
[395204107,1764541841891,-428.24330769,0.00013698,2]
[395204109,1764541841901,-500.0,0.00013698,2]
[395204111,1764541841911,-500.0,0.00013698,2]
[395204113,1764541841920,-500.0,0.00013698,2]
[395204115,1764541841929,-500.0,0.00013698,2]
[395204118,1764541841938,-500.0,0.00013698,2]
[395204119,1764541841947,-500.0,0.00013698,2]
[395204121,1764541841956,-500.0,0.00013698,2]
[395204123,1764541841965,-1425.33,0.00013698,2]
[395204125,1764541841974,-500.0,0.00013698,2]
[395204128,1764541841983,-500.0,0.00013698,2]
[395204130,1764541841991,-568.77,0.00013698,2]
[395204131,1764541842000,-500.0,0.00013698,2]
[395204133,1764541842009,-753.25,0.00013698,2]
[395204136,1764541842019,-500.0,0.00013698,2]
[395204137,1764541842028,-500.0,0.00013698,2]
[395204140,1764541842037,-737.85,0.00013698,2]
[395204141,1764541842046,-500.0,0.00013698,2]
[395204143,1764541842055,-500.0,0.00013698,2]
[395204145,1764541842064,-1348.4,0.00013698,2]
[395204147,1764541842075,-500.0,0.00013698,2]
[395204150,1764541842085,-1182.13,0.00013698,2]
[395204152,1764541842095,-500.0,0.00013698,2]
[395204170,1764541842241,-288.78675817,0.00013698,2]
[395204173,1764541842250,-500.0,0.00013698,2]
[395204176,1764541842259,-558.90128186,0.00013698,2]
[395204180,1764541842268,-500.0,0.00013698,2]
[395204183,1764541842278,-500.0,0.00013698,2]
[395204186,1764541842287,-500.0,0.00013698,2]
[395204189,1764541842296,-500.0,0.00013698,2]
[395204192,1764541842305,-1927.42,0.00013698,2]
[395204196,1764541842314,-500.0,0.00013698,2]
[395204198,1764541842323,-500.0,0.00013698,2]
[395204201,1764541842332,-4029.0,0.00013698,2]
[395204204,1764541842342,-500.0,0.00013698,2]
[395204206,1764541842350,-6707.69,0.00013698,2]
[395204208,1764541842359,-500.0,0.00013698,2]
[395204209,1764541842368,-230.48578973,0.00013698,2]
[395204224,1764541842484,-269.51421027,0.00013698,2]
[395204226,1764541842493,-500.0,0.00013698,2]
[395204228,1764541842502,-500.0,0.00013698,2]
[395204229,1764541842514,-500.0,0.00013698,2]
[395204231,1764541842523,-500.0,0.00013698,2]
[395204232,1764541842532,-1297.31,0.00013698,2]
[395204234,1764541842542,-500.0,0.00013698,2]
[395204235,1764541842552,-500.0,0.00013698,2]
[395204236,1764541842561,-520.72,0.00013698,2]
[395204237,1764541842570,-771.65,0.00013698,2]
[395204238,1764541842579,-500.0,0.00013698,2]
[395204239,1764541842588,-1551.3,0.00013698,2]
[395204240,1764541842597,-500.0,0.00013698,2]
[395204241,1764541842606,-500.0,0.00013698,2]
[395204242,1764541842615,-596.6,0.00013698,2]
[395204243,1764541842625,-500.0,0.00013698,2]
[395204245,1764541842634,-500.0,0.00013698,2]
[395204247,1764541842643,-500.0,0.00013698,2]
[395204249,1764541842653,-1031.72,0.00013698,2]
[395204251,1764541842662,-1104.15,0.00013698,2]
[395204253,1764541842671,-412.89150871,0.00013698,2]
[395204254,1764541842684,-87.10849129,0.00013698,2]
[395204256,1764541842693,-2722.27,0.00013698,2]
[395204258,1764541842704,-500.0,0.00013698,2]
[395204260,1764541842713,-500.0,0.00013698,2]
[395204262,1764541842723,-500.0,0.00013698,2]
[395204264,1764541842733,-824.66,0.00013698,2]
[395204266,1764541842742,-500.0,0.00013698,2]
[395204268,1764541842751,-500.0,0.00013698,2]
[395204270,1764541842760,-500.0,0.00013698,2]
[395204272,1764541842769,-500.0,0.00013698,2]
[395204274,1764541842778,-500.0,0.00013698,2]
[395204276,1764541842788,-390.04083107,0.00013698,2]
[395204278,1764541842797,-500.0,0.00013698,2]
[395204280,1764541842806,-479.80974997,0.00013698,2]
[395204282,1764541842818,-20.19025003,0.00013698,2]
[395204284,1764541842827,-500.0,0.00013698,2]
[395204286,1764541842837,-500.0,0.00013698,2]
[395204288,1764541842846,-1357.92,0.00013698,2]
[395204290,1764541842856,-500.0,0.00013698,2]
[395204292,1764541842865,-500.0,0.00013698,2]
[395204294,1764541842875,-827.26,0.00013698,2]
[395204296,1764541842884,-500.0,0.00013698,2]
[395204298,1764541842894,-500.0,0.00013698,2]
[395204300,1764541842904,-2299.25,0.00013698,2]
[395204302,1764541842914,-500.0,0.00013698,2]
[395204304,1764541842923,-500.0,0.00013698,2]
[395204306,1764541842932,-1905.74089332,0.00013698,2]
[395204322,1764541843227,-1618.04910668,0.00013698,2]
[395204323,1764541843237,-500.0,0.00013698,2]
[395204324,1764541843247,-500.0,0.00013698,2]
[395204325,1764541843256,-500.0,0.00013698,2]
[395204326,1764541843264,-500.0,0.00013698,2]
[395204327,1764541843273,-500.0,0.00013698,2]
[395204328,1764541843283,-501.22750964,0.00013698,2]
[395204329,1764541843292,-500.0,0.00013698,2]
[395204330,1764541843301,-2845.99264283,0.00013698,2]
[395204331,1764541843939,-346.01735717,0.00013698,2]
[395204332,1764541843949,-867.55,0.00013698,2]
[395204333,1764541843958,-500.0,0.00013698,2]
[395204334,1764541843967,-565.28,0.00013698,2]
[395204335,1764541843976,-278.44931989,0.00013698,2]
[395204336,1764541843985,-709.7,0.00013698,2]
[395204337,1764541843995,-500.0,0.00013698,2]
[395204338,1764541844004,-531.59,0.00013698,2]
[395204339,1764541844013,-2000.02,0.00013698,2]
[395204340,1764541844023,-702.97,0.00013698,2]
[395204341,1764541844032,-2881.85,0.00013698,2]
[395204342,1764541844041,-3548.49,0.00013698,2]
[395204343,1764541844051,-500.0,0.00013698,2]
[395204344,1764541844060,-5846.51,0.00013698,2]
[395204345,1764541844070,-631.61,0.00013698,2]
[395204346,1764541844079,-500.0,0.00013698,2]
[395204347,1764541844088,-429.49695903,0.00013698,2]
[395204348,1764541844097,-500.0,0.00013698,2]
[395204349,1764541844112,-1435.8,0.00013698,2]
[395204350,1764541844121,-500.0,0.00013698,2]
[395204351,1764541844131,-5271.97,0.00013698,2]
[395204352,1764541844140,-1348.22,0.00013698,2]
[395204353,1764541844151,-500.0,0.00013698,2]
[395204354,1764541844160,-522.65603436,0.00013698,2]
[395204355,1764541845679,-1262.28396564,0.00013698,2]
[395204356,1764541845688,-500.0,0.00013698,2]
[395204357,1764541845697,-1730.37,0.00013698,2]
[395204358,1764541845706,-1000.39,0.00013698,2]
[395204359,1764541845715,-500.0,0.00013698,2]
[395204360,1764541845724,-2692.21,0.00013698,2]
[395204361,1764541845733,-500.0,0.00013698,2]
[395204362,1764541845742,-500.0,0.00013698,2]
[395204363,1764541845750,-1347.82,0.00013698,2]
[395204364,1764541845759,-1264.79,0.00013698,2]
[395204365,1764541845768,-500.0,0.00013698,2]
[395204366,1764541845777,-500.0,0.00013698,2]
[395204367,1764541845785,-500.0,0.00013698,2]
[395204368,1764541845794,-427.09182214,0.00013698,2]
[395204369,1764541845803,-1622.21262839,0.00013698,2]
[395204370,1764541845814,-496.15,0.00013698,2]
[395204371,1764541845825,-231.21737161,0.00013698,2]
[395204372,1764541845834,-1178.93,0.00013698,2]
[395204373,1764541845843,-573.97,0.00013698,2]
[395204374,1764541845852,-500.0,0.00013698,2]
[395204375,1764541845861,-500.0,0.00013698,2]
[395204376,1764541845870,-724.49,0.00013698,2]
[395204377,1764541845879,-736.05,0.00013698,2]
[395204378,1764541845888,-1078.23,0.00013698,2]
[395204379,1764541845896,-1777.57,0.00013698,2]
[395204380,1764541845906,-500.0,0.00013698,2]
[395204381,1764541845914,-1120.3,0.00013698,2]
[395204382,1764541845923,-500.0,0.00013698,2]
[395204383,1764541845932,-500.0,0.00013698,2]
[395204384,1764541845940,-8748.04,0.00013698,2]
[395204385,1764541845949,-2691.75,0.00013698,2]
[395204386,1764541845959,-2714.56,0.00013698,2]
[395204387,1764541845967,-500.0,0.00013698,2]
[395204388,1764541845976,-500.0,0.00013698,2]
[395204389,1764541845985,-5660.54,0.00013698,2]
[395204390,1764541845993,-1592.87,0.00013698,2]
[395204391,1764541846003,-500.0,0.00013698,2]
[395204392,1764541846012,-500.0,0.00013698,2]
[395204393,1764541846020,-2518.03,0.00013698,2]
[395204403,1764541846172,-500.0,0.00013698,2]
[395204404,1764541846183,-500.0,0.00013698,2]
[395204405,1764541846193,-500.0,0.00013698,2]
[395204406,1764541846202,-979.06,0.00013698,2]
[395204407,1764541846212,-500.0,0.00013698,2]
[395204408,1764541846221,-1834.2,0.00013698,2]
[395204409,1764541846231,-500.0,0.00013698,2]
[395204410,1764541846240,-500.0,0.00013698,2]
[395204411,1764541846249,-5338.25,0.00013698,2]
[395204412,1764541846259,-886.23,0.00013698,2]
[395204413,1764541846268,-500.0,0.00013698,2]
[395204414,1764541846278,-2536.52,0.00013698,2]
[395204415,1764541846287,-500.0,0.00013698,2]
[395204416,1764541846296,-1520.63,0.00013698,2]
[395204417,1764541846305,-736.74,0.00013698,2]
[395204418,1764541846315,-500.0,0.00013698,2]
[395204419,1764541846324,-500.0,0.00013698,2]
[395204420,1764541846334,-2436.53,0.00013698,2]
[395204421,1764541846343,-500.0,0.00013698,2]
[395204422,1764541846352,-659.17,0.00013698,2]
[395204423,1764541846361,-500.0,0.00013698,2]
[395204424,1764541846370,-500.0,0.00013698,2]
[395204425,1764541846379,-500.0,0.00013698,2]
[395204426,1764541846388,-2878.5,0.00013698,2]
[395204427,1764541846398,-500.0,0.00013698,2]
[395204428,1764541846409,-2505.74,0.00013698,2]
[395204429,1764541846418,-740.62,0.00013698,2]
[395204430,1764541846427,-500.0,0.00013698,2]
[395204431,1764541846436,-500.0,0.00013698,2]
[395204432,1764541846446,-514.93,0.00013698,2]
[395204433,1764541846455,-6990.26,0.00013698,2]
[395204434,1764541846464,-483.36874243,0.00013698,2]
[395204435,1764541846474,-123.87889257,0.00013698,2]
[395204437,1764543031774,-326.96170875,9.013e-05,2]
[395204438,1764543031783,-270.25758684,9.104e-05,2]
[395204439,1764543031793,-56.70412191,9.104e-05,2]
[395204440,1764543031804,-225.0,9.104e-05,2]
[395204441,1764543031813,-602.3515706,9.619e-05,2]
[395204442,1764543031821,-233.18177494,9.963e-05,2]
[395204443,1764543031831,-164.6962761,0.00010323,2]
[395204444,1764543031840,-353.67603643,0.0001075,2]
[395204445,1764543031849,-378.85009194,0.00010958,2]
[395204446,1764543031858,-164.69627609,0.00011748,2]
[395204447,1764543031866,-275.15449443,0.00011963,2]
[395204448,1764543031875,-50000.0,0.00012878,2]
[395204449,1764543031883,-596.2226054,0.00012878,2]
[395204450,1764543031892,-401.5238362,0.00013071,2]
[395204451,1764543031901,-974.07545256,0.00013157,2]
[395204452,1764543031910,-268.0,0.0001317,2]
[395204453,1764543031919,-164.69627609,0.00013173,2]
[395204455,1764543031927,-396.9531972,0.000132,2]
[395204457,1764543031936,-940.0,0.00013272,2]
[395204459,1764543031945,-500.0,0.00013273,2]
[395204461,1764543031954,-500.0,0.00013273,2]
[395204463,1764543031962,-500.0,0.00013273,2]
[395204465,1764543031971,-500.0,0.00013273,2]
[395204467,1764543031980,-500.0,0.00013273,2]
[395204468,1764543031988,-500.0,0.00013273,2]
[395204470,1764543031997,-500.0,0.00013273,2]
[395204472,1764543032006,-500.0,0.00013273,2]
[395204474,1764543032015,-500.0,0.00013273,2]
[395204477,1764543032025,-500.0,0.00013273,2]
[395204479,1764543032034,-500.0,0.00013273,2]
[395204481,1764543032043,-165.0310035,0.00013404,2]
[395204482,1764543032052,-596.2226054,0.00013404,2]
[395204483,1764543032061,-165.0310035,0.00013404,2]
[395204484,1764543032071,-306.0,0.00013404,2]
[395204485,1764543032079,-165.0310035,0.00013404,2]
[395204486,1764543032088,-540.7367635,0.00013404,2]
[395204487,1764543032097,-165.0310035,0.00013404,2]
[395204488,1764543032106,-596.2226054,0.00013404,2]
[395204489,1764543032115,-258.3100609,0.00013404,2]
[395204490,1764543032125,-596.2226054,0.00013404,2]
[395204491,1764543032134,-596.2226054,0.00013404,2]
[395204492,1764543032144,-301.7532616,0.00013404,2]
[395204493,1764543032153,-596.2226054,0.00013404,2]
[395204494,1764543032161,-301.7532616,0.00013404,2]
[395204495,1764543032170,-4796.69669083,0.00013498,2]
[395204496,1764543032182,-956.62484928,0.00013498,2]
[395204559,1764543038124,-413.22000433,0.00012877,2]
[395204561,1764543038134,-476.55999567,0.00013273,2]
[395204563,1764543038145,-36.70385989,0.00013273,2]
[395204565,1764543038154,-500.0,0.00013273,2]
[395204567,1764543038163,-13879.42602403,0.00013498,2]
[395204569,1764543038172,-1633.98114183,0.0001351,2]
[395204571,1764543038182,-231.28369723,0.0001359,2]
[395204573,1764543038191,-150.0,0.00013641,2]
[395204575,1764543038200,-465.68086334,0.00013698,2]
[395204577,1764543038210,-500.0,0.00013698,2]
[395204579,1764543038219,-500.0,0.00013698,2]
[395204581,1764543038228,-500.0,0.00013698,2]
[395204583,1764543038238,-423.53739611,0.00013698,2]
[395204584,1764543038247,-743.62,0.00013698,2]
[395204587,1764543038256,-500.0,0.00013698,2]
[395204588,1764543038266,-500.0,0.00013698,2]
[395204590,1764543038275,-500.0,0.00013698,2]
[395204592,1764543038285,-500.0,0.00013698,2]
[395204594,1764543038294,-500.0,0.00013698,2]
[395204596,1764543038304,-500.0,0.00013698,2]
[395204598,1764543038313,-500.0,0.00013698,2]
[395204600,1764543038323,-776.21,0.00013698,2]
[395204602,1764543038332,-500.0,0.00013698,2]
[395204605,1764543038342,-151.0,0.00013698,2]
[395204607,1764543038351,-151.0,0.00013698,2]
[395204608,1764543038360,-500.0,0.00013698,2]
[395204610,1764543038370,-151.0,0.00013698,2]
[395204612,1764543038380,-151.0,0.00013698,2]
[395204614,1764543038389,-500.0,0.00013698,2]
[395204616,1764543038399,-500.0,0.00013698,2]
[395204619,1764543038409,-500.0,0.00013698,2]
[395204621,1764543038419,-500.0,0.00013698,2]
[395204622,1764543038428,-594.89550507,0.00013698,2]
[395204624,1764543038438,-471.22756316,0.00013698,2]
[395204627,1764543038447,-500.0,0.00013698,2]
[395204629,1764543038457,-500.0,0.00013698,2]
[395204630,1764543038467,-500.0,0.00013698,2]
[395204632,1764543038476,-500.0,0.00013698,2]
[395204635,1764543038486,-500.0,0.00013698,2]
[395204636,1764543038495,-601.79,0.00013698,2]
[395204638,1764543038505,-527.16,0.00013698,2]
[395204641,1764543038514,-500.0,0.00013698,2]
[395204642,1764543038524,-500.0,0.00013698,2]
[395204644,1764543038533,-536.15339802,0.00013698,2]
[395204646,1764543038542,-500.0,0.00013698,2]
[395204648,1764543038552,-500.0,0.00013698,2]
[395204650,1764543038561,-500.0,0.00013698,2]
[395204652,1764543038570,-500.0,0.00013698,2]
[395204654,1764543038580,-500.0,0.00013698,2]
[395204656,1764543038589,-500.0,0.00013698,2]
[395204658,1764543038598,-500.0,0.00013698,2]
[395204660,1764543038607,-1542.63,0.00013698,2]
[395204662,1764543038616,-500.0,0.00013698,2]
[395204664,1764543038626,-500.0,0.00013698,2]
[395204666,1764543038637,-168.44703554,0.00013698,2]
[395204668,1764543038646,-500.0,0.00013698,2]
[395204670,1764543038655,-645.37,0.00013698,2]
[395204672,1764543038665,-151.0,0.00013698,2]
[395204674,1764543038674,-151.0,0.00013698,2]
[395204676,1764543038683,-151.0,0.00013698,2]
[395204678,1764543038692,-151.0,0.00013698,2]
[395204680,1764543038701,-1008.07,0.00013698,2]
[395204682,1764543038712,-151.0,0.00013698,2]
[395204684,1764543038722,-151.0,0.00013698,2]
[395204686,1764543038731,-500.0,0.00013698,2]
[395204688,1764543038741,-500.0,0.00013698,2]
[395204691,1764543038751,-500.0,0.00013698,2]
[395204692,1764543038763,-276.91661767,0.00013698,2]
[395204695,1764543038773,-500.0,0.00013698,2]
[395204697,1764543038782,-500.0,0.00013698,2]
[395204699,1764543038791,-500.0,0.00013698,2]
[395204701,1764543038801,-500.0,0.00013698,2]
[395204703,1764543038810,-151.0,0.00013698,2]
[395204705,1764543038821,-500.0,0.00013698,2]
[395204707,1764543038829,-500.0,0.00013698,2]
[395204709,1764543038841,-500.0,0.00013698,2]
[395204711,1764543038850,-500.0,0.00013698,2]
[395204713,1764543038860,-500.0,0.00013698,2]
[395204715,1764543038869,-609.72298199,0.00013698,2]
[395204717,1764543038878,-558.04,0.00013698,2]
[395204719,1764543038887,-500.0,0.00013698,2]
[395204721,1764543038897,-500.0,0.00013698,2]
[395204722,1764543038906,-500.0,0.00013698,2]
[395204724,1764543038917,-636.06647583,0.00013698,2]
[395204726,1764543038926,-500.0,0.00013698,2]
[395204728,1764543038936,-500.0,0.00013698,2]
[395204730,1764543038945,-500.0,0.00013698,2]
[395204732,1764543038955,-500.0,0.00013698,2]
[395204735,1764543038964,-471.00113019,0.00013698,2]
[395204736,1764543038974,-500.0,0.00013698,2]
[395204738,1764543038984,-500.0,0.00013698,2]
[395204741,1764543038994,-500.0,0.00013698,2]
[395204742,1764543039003,-500.0,0.00013698,2]
[395204744,1764543039013,-500.0,0.00013698,2]
[395204746,1764543039023,-500.0,0.00013698,2]